fUST/lending_fUST_20250724
["ID","MTS","AMOUNT","RATE_DAILY","PERIOD"]
[374425507,1753297852044,-160.0,0.000225,3]
[374425508,1753297852054,-4192.71,0.000225,7]
[374425509,1753297852063,-224.261573,0.000225,7]
[374425510,1753297852072,-224.261573,0.000225,7]
[374425511,1753297852082,-775.994454,0.000225,7]
[374425512,1753297852091,-775.994454,0.000225,7]
[374425513,1753297852101,-151.0,0.000225,7]
[374425514,1753297852111,-151.0,0.000225,7]
[374425515,1753297852120,-151.0,0.000225,7]
[374425516,1753297852130,-151.0,0.000225,7]
[374425517,1753297852139,-151.0,0.000225,7]
[374425518,1753297852148,-2670.718592,0.000225,7]
[374425519,1753297852158,-2670.718592,0.000225,7]
[374425520,1753297852167,-151.0,0.000225,7]
[374425521,1753297852176,-151.0,0.000225,7]
[374425522,1753297852185,-151.0,0.000225,7]
[374425523,1753297852195,-151.0,0.000225,7]
[374425524,1753297852204,-728.374551,0.000225,7]
[374425525,1753297852213,-728.374551,0.000225,7]
[374425526,1753297852227,-287.22655,0.000225,7]
[374425527,1753297852236,-287.22655,0.000225,7]
[374425528,1753297852245,-151.0,0.000225,7]
[374425529,1753297852255,-1883.57,0.00022507,2]
[374425530,1753297852264,-491.6,0.00022508,2]
[374425531,1753297852275,-668.27,0.00022508,2]
[374425532,1753297852284,-151.0,0.00022521,7]
[374425533,1753297852293,-1158.7,0.00022521,5]
[374425534,1753297852305,-1430.94,0.00022538,3]
[374425535,1753297852314,-760.52,0.00022539,5]
[374425536,1753297852323,-151.0,0.0002254,7]
[374425537,1753297852332,-151.0,0.0002254,7]
[374425538,1753297852342,-151.0,0.00022547,7]
[374425539,1753297852351,-151.0,0.000226,10]
[374425540,1753297852360,-151.0,0.000226,5]
[374425541,1753297852370,-643.0,0.000226,2]
[374425542,1753297852379,-521.933324,0.00022636,7]
[374425543,1753297852389,-521.933324,0.00022636,7]
[374425544,1753297852399,-204.853959,0.00022636,3]
[374425545,1753297852408,-163.883167,0.00022636,3]
[374425546,1753297852417,-170.347997,0.00022638,7]
[374425547,1753297852427,-170.347997,0.00022638,7]
[374425548,1753297852436,-760.52,0.00022639,7]
[374425549,1753297852446,-205.0,0.0002264,2]
[374425550,1753297852455,-714.955063,0.0002264,7]
[374425551,1753297852464,-714.955063,0.0002264,7]
[374425552,1753297852474,-3858.88479,0.0002264,7]
[374425553,1753297852483,-3858.88479,0.0002264,7]
[374425554,1753297852493,-224.261573,0.0002264,7]
[374425555,1753297852505,-224.261573,0.0002264,7]
[374425556,1753297852515,-151.0,0.0002264,7]
[374425557,1753297852524,-775.994454,0.0002264,7]
[374425558,1753297852533,-775.994454,0.0002264,7]
[374425559,1753297852543,-728.374551,0.0002264,7]
[374425560,1753297852552,-728.374551,0.0002264,7]
[374425561,1753297852561,-151.0,0.00022682,7]
[374425562,1753297852571,-151.0,0.00022682,7]
[374425563,1753297852581,-151.0,0.00022682,7]
[374425564,1753297852590,-287.22655,0.00022682,7]
[374425565,1753297852599,-287.22655,0.00022682,7]
[374425566,1753297852608,-18691.35,0.000227,7]
[374425567,1753297852618,-151.0,0.000227,7]
[374425568,1753297852627,-151.0,0.000227,7]
[374425569,1753297852637,-2670.718592,0.000227,7]
[374425570,1753297852646,-2670.718592,0.000227,7]
[374425571,1753297852656,-151.0,0.000227,7]
[374425572,1753297852666,-151.0,0.000227,7]
[374425573,1753297852675,-151.0,0.000227,7]
[374425574,1753297852686,-151.0,0.000227,7]
[374425575,1753297852696,-151.0,0.000227,7]
[374425576,1753297852706,-231.28369723,0.00022724,2]
[374425577,1753297852715,-151.0,0.00022733,7]
[374425578,1753297852724,-151.0,0.00022733,7]
[374425579,1753297852734,-459.749028,0.00022733,7]
[374425580,1753297852743,-459.749028,0.00022733,7]
[374425581,1753297852752,-906.63,0.00022735,2]
[374425582,1753297852762,-1458.84,0.00022736,2]
[374425583,1753297852775,-599.14,0.00022736,2]
[374425584,1753297852785,-465.47,0.00022736,2]
[374425585,1753297852795,-460.0,0.00022736,2]
[374425586,1753297852804,-817.63,0.00022736,2]
[374425587,1753297852814,-711.46,0.00022736,2]
[374425588,1753297852824,-151.0,0.00022737,7]
[374425589,1753297852834,-789.87,0.00022737,2]
[374425590,1753297852843,-566.37,0.00022738,2]
[374425591,1753297852852,-613.77,0.00022738,2]
[374425592,1753297852863,-151.0,0.00022739,7]
[374425593,1753297852872,-151.0,0.00022739,7]
[374425594,1753297852882,-151.0,0.00022739,7]
[374425595,1753297852892,-760.52,0.00022739,7]
[374425596,1753297852901,-492.0,0.0002274,2]
[374425597,1753297852911,-431.0,0.0002274,2]
[374425598,1753297852920,-13000.0,0.0002277,2]
[374425599,1753297852929,-800.0,0.00022779,2]
[374425600,1753297852939,-1883.57,0.00022781,2]
[374425601,1753297852948,-491.6,0.00022782,2]
[374425602,1753297852958,-668.27,0.00022782,2]
[374425603,1753297852967,-311.0,0.00022784,2]
[374425604,1753297852976,-311.0,0.00022797,2]
[374425605,1753297852987,-151.0,0.000228,9]
[374425606,1753297852997,-151.0,0.000228,6]
[374425607,1753297853006,-460.0,0.00022805,2]
[374425608,1753297853015,-800.0,0.00022817,2]
[374425609,1753297853025,-311.0,0.00022834,2]
[374425610,1753297853036,-760.52,0.00022839,3]
[374425611,1753297853057,-1158.7,0.00022843,6]
[374425612,1753297853068,-311.0,0.00022863,2]
[374425613,1753297853078,-16210.70064156,0.000229,7]
[374425623,1753298394491,284.287581,0.00013699,2]
[374425624,1753298756139,-562.2158112,0.00019855,2]
[374425625,1753298758501,-1785.599578,0.00019855,2]
[374425626,1753298758522,-953.72089034,0.00019855,2]
[374425627,1753298758546,-242.0,0.00019871,2]
[374425628,1753298758567,-223.0,0.00019872,2]
[374425629,1753298758587,-7.70625102,0.00019872,2]
[374425638,1753298829120,-477.75779844,0.0001978,2]
[374425639,1753298829147,-215.99,0.00019785,2]
[374425640,1753298829168,-300.0,0.00019872,2]
[374425641,1753298829188,-401.74502892,0.00019873,2]
[374425642,1753298843098,-98.25497108,0.00019873,2]
[374425643,1753298843122,-71.22639829,0.00019879,2]
[374425644,1753298846088,-143.84740171,0.00019879,2]
[374425645,1753298846116,-539.57356699,0.00019879,2]
[374425663,1753298917423,302.0,0.0002,120]
[374425720,1753299032700,-541.53445754,0.000189,2]
[374425722,1753299032710,-215.69,0.00019784,2]
[374425724,1753299032719,-1371.81562583,0.00019834,2]
[374425726,1753299032732,-1817.81414773,0.00019834,2]
[374425728,1753299032741,-948.03082748,0.00019834,2]
[374425730,1753299032751,-215.0738,0.00019871,2]
[374425732,1753299032760,-3801.642,0.00019871,2]
[374425734,1753299032770,-300.0,0.00019872,2]
[374425735,1753299032780,-500.0,0.00019873,2]
[374425736,1753299032789,-460.0,0.00019878,2]
[374425738,1753299032799,-277.95502782,0.00019878,2]
[374425767,1753299038794,-182.04497218,0.00019878,2]
[374425768,1753299038804,-460.0,0.00019878,2]
[374425769,1753299038813,-460.0,0.00019878,2]
[374425770,1753299038823,-500.0,0.00019878,2]
[374425771,1753299038832,-500.0,0.00019878,2]
[374425772,1753299038842,-500.0,0.00019878,2]
[374425773,1753299038851,-500.0,0.00019878,2]
[374425774,1753299038860,-500.0,0.00019878,2]
[374425775,1753299038870,-500.0,0.00019878,2]
[374425776,1753299038879,-613.25413393,0.00019878,2]
[374425777,1753299038890,-500.0,0.00019878,2]
[374425778,1753299038899,-500.0,0.00019878,2]
[374425779,1753299038908,-500.0,0.00019878,2]
[374425780,1753299038917,-500.0,0.00019878,2]
[374425781,1753299038926,-500.0,0.00019878,2]
[374425782,1753299038935,-500.0,0.00019878,2]
[374425783,1753299038944,-500.0,0.00019878,2]
[374425784,1753299038954,-500.0,0.00019878,2]
[374425786,1753299038963,-500.0,0.00019878,2]
[374425788,1753299038973,-385.96782821,0.00019878,2]
[374425790,1753299038982,-580.12891717,0.00019878,2]
[374425792,1753299038992,-454.80439259,0.00019878,2]
[374425794,1753299039001,-500.0,0.00019878,2]
[374425796,1753299039010,-203.27069904,0.00019878,2]
[374425798,1753299039019,-500.0,0.00019878,2]
[374425800,1753299039028,-436.2265445,0.00019878,2]
[374425802,1753299039037,-500.0,0.00019878,2]
[374425804,1753299039047,-500.0,0.00019878,2]
[374425806,1753299039056,-500.0,0.00019878,2]
[374425808,1753299039065,-500.0,0.00019878,2]
[374425810,1753299039074,-500.0,0.00019878,2]
[374425812,1753299039083,-500.0,0.00019878,2]
[374425814,1753299039092,-500.0,0.00019878,2]
[374425816,1753299039102,-500.0,0.00019878,2]
[374425818,1753299039111,-500.0,0.00019878,2]
[374425820,1753299039120,-500.0,0.00019878,2]
[374425822,1753299039129,-500.0,0.00019878,2]
[374425824,1753299039141,-500.0,0.00019878,2]
[374425826,1753299039150,-500.0,0.00019878,2]
[374425828,1753299039159,-500.0,0.00019878,2]
[374425830,1753299039169,-500.0,0.00019878,2]
[374425832,1753299039178,-500.0,0.00019878,2]
[374425834,1753299039188,-500.0,0.00019878,2]
[374425836,1753299039197,-500.0,0.00019878,2]
[374425838,1753299039206,-500.0,0.00019878,2]
[374425840,1753299039215,-500.0,0.00019878,2]
[374425842,1753299039224,-500.0,0.00019878,2]
[374425844,1753299039233,-340.66691342,0.00019878,2]
[374425846,1753299039242,-500.0,0.00019878,2]
[374425848,1753299039251,-500.0,0.00019878,2]
[374425850,1753299039261,-500.0,0.00019878,2]
[374425852,1753299039271,-500.0,0.00019878,2]
[374425854,1753299039280,-461.43341498,0.00019879,2]
[374425856,1753299039290,-596.17332895,0.00019879,2]
[374425858,1753299039299,-460.0,0.00019879,2]
[374425860,1753299039309,-460.55102247,0.00019879,2]
[374425862,1753299039317,-460.0,0.00019879,2]
[374425864,1753299039327,-460.0,0.00019879,2]
[374425867,1753299039341,-460.0,0.00019879,2]
[374425868,1753299039350,-572.7,0.00019879,2]
[374425870,1753299039360,-460.0,0.00019879,2]
[374425873,1753299039370,-367.59117734,0.0001988,2]
[374425875,1753299039380,-460.0,0.0001988,2]
[374425877,1753299039390,-635.69,0.0001988,2]
[374425879,1753299039399,-460.0,0.0001988,2]
[374425881,1753299039408,-460.0,0.0001988,2]
[374425883,1753299039418,-460.0,0.0001988,2]
[374425885,1753299039427,-518.18505277,0.0001988,2]
[374425887,1753299039437,-587.15,0.0001988,2]
[374425889,1753299039447,-460.0,0.0001988,2]
[374425891,1753299039456,-460.0,0.0001988,2]
[374425893,1753299039465,-460.0,0.0001988,2]
[374425895,1753299039475,-473.06,0.0001988,2]
[374425897,1753299039484,-460.0,0.0001988,2]
[374425899,1753299039494,-460.0,0.0001988,2]
[374425901,1753299039503,-460.0,0.0001988,2]
[374425903,1753299039513,-460.0,0.0001988,2]
[374425905,1753299039523,-460.0,0.0001988,2]
[374425907,1753299039538,-500.89911758,0.0001988,2]
[374425909,1753299039548,-460.0,0.0001988,2]
[374425911,1753299039558,-460.0,0.0001988,2]
[374425913,1753299039568,-174.24,0.00019883,3]
[374425915,1753299039578,-871.24,0.00019883,3]
[374425917,1753299039588,-151.0,0.00019883,2]
[374425919,1753299039597,-151.0,0.00019883,2]
[374425921,1753299039608,-151.0,0.00019883,2]
[374425923,1753299039617,-151.0,0.00019883,2]
[374425925,1753299039626,-151.0,0.00019883,2]
[374425927,1753299039635,-151.0,0.00019883,2]
[374425929,1753299039649,-151.0,0.00019883,2]
[374425931,1753299039658,-151.0,0.00019883,2]
[374425933,1753299039668,-151.0,0.00019883,2]
[374425935,1753299039678,-151.0,0.00019883,2]
[374425937,1753299039687,-151.0,0.00019883,2]
[374425939,1753299039697,-151.0,0.00019883,2]
[374425941,1753299039706,-151.0,0.00019883,2]
[374425943,1753299039716,-151.0,0.00019883,2]
[374425945,1753299039726,-151.0,0.00019883,2]
[374425967,1753299039735,-151.0,0.00019883,2]
[374425969,1753299039933,-151.0,0.00019883,2]
[374425971,1753299039942,-151.0,0.00019883,2]
[374425973,1753299039952,-25000.0,0.00019883,2]
[374425975,1753299039961,-151.0,0.00019883,2]
[374425977,1753299039970,-19042.51828975,0.00019883,2]
[374425979,1753299039979,-151.0,0.00019883,2]
[374425981,1753299039988,-151.0,0.00019883,2]
[374425983,1753299039998,-348.48,0.00019884,3]
[374425985,1753299040007,-357.78735183,0.0001989,2]
[374425987,1753299040016,-460.0,0.0001989,2]
[374425989,1753299040025,-427.23785156,0.0001989,2]
[374425991,1753299040034,-460.0,0.0001989,2]
[374425993,1753299040044,-460.0,0.0001989,2]
[374425995,1753299040053,-460.0,0.0001989,2]
[374425997,1753299040063,-460.0,0.0001989,2]
[374425999,1753299040073,-989.84,0.0001989,2]
[374426001,1753299040082,-460.0,0.0001989,2]
[374426003,1753299040091,-460.0,0.0001989,2]
[374426005,1753299040102,-460.0,0.0001989,2]
[374426007,1753299040112,-460.0,0.0001989,2]
[374426009,1753299040122,-460.0,0.0001989,2]
[374426011,1753299040132,-460.0,0.0001989,2]
[374426013,1753299040144,-460.0,0.0001989,2]
[374426015,1753299040153,-460.0,0.0001989,2]
[374426017,1753299040162,-569.17232701,0.0001989,2]
[374426019,1753299040171,-742.93,0.0001989,2]
[374426021,1753299040180,-460.0,0.0001989,2]
[374426023,1753299040190,-460.0,0.0001989,2]
[374426025,1753299040199,-460.0,0.0001989,2]
[374426027,1753299040208,-460.0,0.00019891,2]
[374426029,1753299040218,-460.0,0.00019891,2]
[374426031,1753299040227,-460.0,0.00019891,2]
[374426033,1753299040236,-460.0,0.00019891,2]
[374426035,1753299040247,-460.0,0.00019891,2]
[374426037,1753299040256,-460.0,0.00019891,2]
[374426039,1753299040266,-460.0,0.00019891,2]
[374426041,1753299040275,-293.37982033,0.00019891,2]
[374426043,1753299040289,-166.62017967,0.00019891,2]
[374426045,1753299040299,-462.24193882,0.00019891,2]
[374426048,1753299040308,-460.0,0.00019891,2]
[374426049,1753299040318,-460.0,0.00019891,2]
[374426051,1753299040327,-460.0,0.00019891,2]
[374426053,1753299040337,-460.0,0.00019891,2]
[374426055,1753299040346,-577.80975664,0.00019891,2]
[374426058,1753299040356,-460.0,0.00019891,2]
[374426059,1753299040366,-460.0,0.00019891,2]
[374426061,1753299040375,-460.0,0.00019891,2]
[374426063,1753299040384,-460.0,0.00019891,2]
[374426065,1753299040396,-500.0,0.00019891,2]
[374426067,1753299040406,-460.0,0.00019891,2]
[374426069,1753299040415,-460.0,0.00019891,2]
[374426071,1753299040424,-460.0,0.00019891,2]
[374426073,1753299040434,-460.0,0.00019891,2]
[374426075,1753299040443,-460.0,0.00019891,2]
[374426078,1753299040452,-460.0,0.00019891,2]
[374426080,1753299040462,-460.0,0.00019891,2]
[374426082,1753299040471,-460.0,0.00019891,2]
[374426084,1753299040480,-464.41309192,0.00019891,2]
[374426086,1753299040490,-460.0,0.00019891,2]
[374426088,1753299040498,-460.0,0.00019891,2]
[374426090,1753299040509,-64.09584859,0.00019891,2]
[374426093,1753299040527,-500.0,0.00019878,2]
[374426094,1753299040536,-395.90415141,0.00019891,2]
[374426096,1753299040545,-460.0,0.00019891,2]
[374426099,1753299040555,-71.15475215,0.00019891,2]
[374426101,1753299040567,-389.52531967,0.00019891,2]
[374426103,1753299040576,-461.76265842,0.00019891,2]
[374426105,1753299040585,-561.25388855,0.00019891,2]
[374426107,1753299040595,-460.0,0.00019891,2]
[374426108,1753299040605,-460.0,0.00019891,2]
[374426110,1753299040615,-460.0,0.00019891,2]
[374426112,1753299040623,-460.0,0.00019891,2]
[374426114,1753299040632,-460.0,0.00019891,2]
[374426116,1753299040641,-460.0,0.00019891,2]
[374426118,1753299040651,-460.0,0.00019891,2]
[374426120,1753299040660,-460.0,0.00019891,2]
[374426122,1753299040669,-460.0,0.00019891,2]
[374426124,1753299040678,-464.97307931,0.00019891,2]
[374426126,1753299040687,-162.80052599,0.00019891,2]
[374426128,1753299040696,-540.73078974,0.00019891,2]
[374426130,1753299040705,-460.0,0.00019891,2]
[374426132,1753299040715,-33.75373831,0.00019891,2]
[374426138,1753299040755,-500.0,0.00019878,2]
[374426139,1753299040765,-500.0,0.00019878,2]
[374426142,1753299040774,-151.0,0.00019883,2]
[374426143,1753299040783,-426.24626169,0.00019891,2]
[374426146,1753299040793,-460.0,0.00019891,2]
[374426147,1753299040802,-460.0,0.00019891,2]
[374426150,1753299040812,-460.0,0.00019891,2]
[374426152,1753299040829,-460.0,0.00019891,2]
[374426155,1753299040841,-460.0,0.00019891,2]
[374426157,1753299040851,-460.0,0.00019891,2]
[374426159,1753299040860,-460.0,0.00019891,2]
[374426161,1753299040870,-460.0,0.00019891,2]
[374426163,1753299040880,-460.0,0.00019891,2]
[374426165,1753299040893,-460.0,0.00019891,2]
[374426167,1753299040902,-460.0,0.00019891,2]
[374426169,1753299040912,-460.0,0.00019891,2]
[374426171,1753299040922,-460.0,0.00019891,2]
[374426173,1753299040932,-460.0,0.00019891,2]
[374426175,1753299040942,-460.0,0.00019891,2]
[374426177,1753299040952,-461.41627627,0.00019891,2]
[374426179,1753299040962,-460.0,0.00019891,2]
[374426181,1753299040973,-460.0,0.00019891,2]
[374426183,1753299040982,-460.0,0.00019891,2]
[374426185,1753299040993,-460.0,0.00019891,2]
[374426187,1753299041003,-460.0,0.00019891,2]
[374426189,1753299041012,-460.0,0.00019891,2]
[374426191,1753299041022,-460.0,0.00019892,2]
[374426193,1753299041032,-460.0,0.00019892,2]
[374426195,1753299041042,-460.0,0.00019892,2]
[374426197,1753299041051,-463.85214761,0.00019892,2]
[374426199,1753299041061,-460.0,0.00019892,2]
[374426201,1753299041070,-460.0,0.00019892,2]
[374426203,1753299041080,-460.0,0.00019892,2]
[374426205,1753299041090,-460.0,0.00019892,2]
[374426208,1753299041100,-460.0,0.00019892,2]
[374426210,1753299041109,-286.63206287,0.00019892,2]
[374426212,1753299041119,-533.45958033,0.00019893,2]
[374426214,1753299041128,-460.0,0.00019893,2]
[374426216,1753299041138,-474.15,0.00019893,2]
[374426218,1753299041149,-460.0,0.00019893,2]
[374426220,1753299041159,-460.0,0.00019894,2]
[374426222,1753299041168,-462.83383165,0.00019894,2]
[374426224,1753299041178,-460.0,0.00019894,2]
[374426226,1753299041188,-460.0,0.00019894,2]
[374426228,1753299041198,-460.0,0.00019894,2]
[374426230,1753299041208,-466.48323368,0.00019894,2]
[374426232,1753299041216,-429.64154219,0.00019894,2]
[374426234,1753299041226,-460.0,0.00019894,2]
[374426235,1753299041237,-460.0,0.00019894,2]
[374426238,1753299041247,-211431.46425549,0.00019895,2]
[374426240,1753299041259,-36804.44061394,0.00019895,2]
[374426242,1753299041271,-73438.84300174,0.00019895,2]
[374426247,1753299041313,-305.0,0.00019878,2]
[374426411,1753299043705,-215.69,0.00019864,2]
[374426413,1753299043715,-195.0,0.00019878,2]
[374426415,1753299043725,-45.69939999,0.00019878,2]
[374433346,1753299438469,270.073201,0.00013699,2]
[374433355,1753299699380,150.0,0.00021721,30]
[374433356,1753299699781,180.17,0.00022756,30]
[374433360,1753299781714,150.0,0.00020593,30]
[374433361,1753299782104,176.57,0.00021573,30]
[374433362,1753299782513,264.85,0.00022554,30]
[374433363,1753299861516,150.0,0.00020605,30]
[374433364,1753299861930,170.11,0.00021586,30]
[374433365,1753299862333,255.17,0.00022567,30]
[374433366,1753299932310,-411.02297169,0.000189,2]
[374433367,1753299932332,-1096.85605265,0.00019134,2]
[374433369,1753299944893,150.0,0.00020595,30]
[374433370,1753299945329,163.84,0.00021576,30]
[374433371,1753299945921,245.76,0.00022557,30]
[374433372,1753299947094,-666.0,0.00019178,2]
[374433373,1753299947116,-210.58908,0.00019178,2]
[374433374,1753299947138,-1200.0,0.00019525,2]
[374433375,1753299947159,-181.93085639,0.00019679,2]
[374433380,1753300027061,150.0,0.00020508,30]
[374433381,1753300027465,157.73,0.00021485,30]
[374433382,1753300027991,236.6,0.00022462,30]
[374433386,1753300051091,-166.7526901,0.00019556,2]
[374433387,1753300052094,-765.26768061,0.00019556,2]
[374433599,1753300111090,150.0,0.00020374,30]
[374433600,1753300111576,151.79,0.00021345,30]
[374433601,1753300112048,227.69,0.00022315,30]
[374433827,1753300133790,1000.0,0.00023,30]
[374434543,1753300195250,150.0,0.00020383,30]
[374434544,1753300196174,150.0,0.00021353,30]
[374434545,1753300196565,219.03,0.00022324,30]
[374434552,1753300208375,-192.18730513,0.00017488,2]
[374434594,1753300231982,-1726.36,0.00017488,2]
[374434595,1753300232035,-780.0,0.00017488,2]
[374434602,1753300237969,-2509.12934509,0.00017488,2]
[374434603,1753300237979,-5000.0,0.00017488,2]
[374434604,1753300237988,-2640.03188683,0.00019578,2]
[374434605,1753300237998,-156.47206113,0.00019579,2]
[374434606,1753300238007,-157.0,0.00019775,2]
[374434607,1753300238016,-300.0,0.00019775,2]
[374434608,1753300238025,-500.0,0.00019775,2]
[374434609,1753300238035,-500.0,0.00019775,2]
[374434610,1753300238044,-500.0,0.00019775,2]
[374434611,1753300238054,-500.0,0.00019775,2]
[374434612,1753300238064,-500.0,0.00019775,2]
[374434613,1753300238074,-500.0,0.00019775,2]
[374434614,1753300238083,-500.0,0.00019775,2]
[374434615,1753300238092,-500.0,0.00019775,2]
[374434616,1753300238102,-500.0,0.00019775,2]
[374434617,1753300238112,-500.0,0.00019775,2]
[374434618,1753300238122,-500.0,0.00019775,2]
[374434619,1753300238133,-500.0,0.00019775,2]
[374434620,1753300238144,-500.0,0.00019775,2]
[374434621,1753300238154,-500.0,0.00019775,2]
[374434622,1753300238164,-500.0,0.00019775,2]
[374434623,1753300238175,-500.0,0.00019775,2]
[374434624,1753300238184,-500.0,0.00019775,2]
[374434625,1753300238194,-500.0,0.00019775,2]
[374434626,1753300238203,-500.0,0.00019775,2]
[374434627,1753300238212,-610.69916553,0.00019775,2]
[374434628,1753300238221,-500.0,0.00019775,2]
[374434629,1753300238231,-500.0,0.00019775,2]
[374434630,1753300238241,-500.0,0.00019775,2]
[374434631,1753300238250,-500.0,0.00019775,2]
[374434632,1753300238260,-500.0,0.00019775,2]
[374434633,1753300238269,-500.0,0.00019775,2]
[374434634,1753300238279,-500.0,0.00019775,2]
[374434635,1753300238288,-500.0,0.00019775,2]
[374434636,1753300238298,-500.0,0.00019775,2]
[374434637,1753300238307,-500.0,0.00019775,2]
[374434638,1753300238316,-500.0,0.00019775,2]
[374434639,1753300238325,-500.0,0.00019775,2]
[374434640,1753300238334,-500.0,0.00019775,2]
[374434641,1753300238344,-449.3186672,0.00019775,2]
[374434642,1753300238354,-408.01289172,0.00019775,2]
[374434643,1753300238365,-352.95928227,0.00019775,2]
[374434644,1753300238374,-500.0,0.00019775,2]
[374434645,1753300238383,-500.0,0.00019775,2]
[374434646,1753300238393,-227.00950206,0.00019775,2]
[374434647,1753300238402,-500.0,0.00019775,2]
[374434648,1753300238412,-500.0,0.00019775,2]
[374434649,1753300238422,-500.0,0.00019775,2]
[374434650,1753300238436,-500.0,0.00019775,2]
[374434651,1753300238446,-500.0,0.00019775,2]
[374434652,1753300238457,-500.0,0.00019775,2]
[374434653,1753300238467,-500.0,0.00019775,2]
[374434654,1753300238477,-500.0,0.00019775,2]
[374434655,1753300238486,-500.0,0.00019775,2]
[374434656,1753300238496,-500.0,0.00019775,2]
[374434657,1753300238506,-500.0,0.00019775,2]
[374434658,1753300238515,-500.0,0.00019775,2]
[374434659,1753300238526,-500.0,0.00019775,2]
[374434660,1753300238535,-500.0,0.00019775,2]
[374434661,1753300238544,-500.0,0.00019775,2]
[374434662,1753300238553,-500.0,0.00019775,2]
[374434663,1753300238563,-500.0,0.00019775,2]
[374434664,1753300238572,-500.0,0.00019775,2]
[374434665,1753300238581,-500.0,0.00019775,2]
[374434666,1753300238591,-500.0,0.00019775,2]
[374434667,1753300238600,-500.0,0.00019775,2]
[374434668,1753300238611,-500.0,0.00019775,2]
[374434669,1753300238620,-500.0,0.00019775,2]
[374434670,1753300238631,-500.0,0.00019775,2]
[374434671,1753300238640,-500.0,0.00019775,2]
[374434672,1753300238649,-500.0,0.00019775,2]
[374434673,1753300238659,-500.0,0.00019775,2]
[374434674,1753300238668,-500.0,0.00019775,2]
[374434675,1753300238681,-500.0,0.00019775,2]
[374434676,1753300238691,-500.0,0.00019775,2]
[374434677,1753300238700,-500.0,0.00019775,2]
[374434678,1753300238709,-500.0,0.00019775,2]
[374434679,1753300238718,-500.0,0.00019775,2]
[374434680,1753300238728,-500.0,0.00019775,2]
[374434681,1753300238736,-500.0,0.00019775,2]
[374434682,1753300238746,-500.0,0.00019775,2]
[374434683,1753300238755,-500.0,0.00019775,2]
[374434684,1753300238764,-500.0,0.00019775,2]
[374434685,1753300238773,-500.0,0.00019775,2]
[374434686,1753300238782,-500.0,0.00019775,2]
[374434687,1753300238791,-500.0,0.00019775,2]
[374434688,1753300238955,-623.87111908,0.00019775,2]
[374434689,1753300238965,-500.0,0.00019775,2]
[374434690,1753300238975,-500.0,0.00019775,2]
[374434691,1753300238984,-500.0,0.00019775,2]
[374434692,1753300238993,-500.0,0.00019775,2]
[374434693,1753300239003,-500.0,0.00019775,2]
[374434694,1753300239013,-500.0,0.00019775,2]
[374434695,1753300239022,-500.0,0.00019775,2]
[374434696,1753300239031,-500.0,0.00019775,2]
[374434697,1753300239040,-500.0,0.00019775,2]